bitfinex/quotes_SOLUSD_20251208
["timestamp","ask_amount","ask_price","bid_price","bid_amount"]
[1765152676728,8.23690559,131.98,131.94,0.68]
[1765152677648,3.50516415,131.99,131.94,0.68]
[1765152677824,7.57575757,132.0,131.95,3.50516415]
[1765152678031,11.08092172,132.0,131.94,11.76430644]
[1765152678352,30.68031565,132.0,131.95,0.68]
[1765152678525,30.02031565,132.0,131.95,0.68]
[1765152678729,8.4,132.01,131.97,3.50516415]
[1765152679346,7.57388685,132.04,131.99,3.50516415]
[1765152679753,7.57388685,132.04,132.0,0.68]
[1765152680049,8.23388685,132.04,132.0,0.68]
[1765152680258,0.66,132.03,132.0,0.68]
[1765152680552,30.67270746,132.04,132.0,0.68]
[1765152681736,30.01270746,132.04,131.98,11.08204911]
[1765152681951,12.31510907,132.02,131.97,0.71]
[1765152682324,3.50516415,132.01,131.97,0.71]
[1765152682528,4.21516415,132.01,131.97,0.71]
[1765152682753,0.71,132.01,131.97,0.71]
[1765152683140,4.21516415,132.01,131.97,0.71]
[1765152683627,0.71,132.01,131.97,0.71]
[1765152683829,7.57518369,132.01,131.97,4.21516415]
[1765152684441,7.57518369,132.01,131.98,0.71]
[1765152685155,7.57482511,132.02,131.98,4.21516415]
[1765152685648,7.57482511,132.02,131.99,0.71]
[1765152686156,26.51011497,132.03,131.99,0.71]
[1765152686357,0.71,132.02,131.97,4.21516415]
[1765152686661,4.21516415,132.02,131.96,73.28285103]
[1765152687042,4.21516415,132.02,131.97,0.71]
[1765152687654,12.61516415,132.02,131.97,8.28736691]
[1765152688043,12.61516415,132.02,131.98,0.71]
[1765152688245,7.57518369,132.01,131.98,0.71]
[1765152689845,8.28518369,132.01,131.97,3.50516415]
[1765152690045,8.28518369,132.01,131.98,0.71]
[1765152690046,7.57518369,132.01,131.98,0.71]
[1765152691263,8.28518369,132.01,131.96,73.28303067]
[1765152691457,8.28518369,132.01,131.98,0.71]
[1765152694972,20.52402815,132.05,131.99,3.50516415]
[1765152695140,8.38,132.04,131.99,3.50516415]
[1765152695459,8.38,132.04,132.0,0.71]
[1765152695836,9.09,132.04,132.0,0.71]
[1765152696037,19.45902696,132.04,132.0,0.71]
[1765152696361,20.16902696,132.04,132.0,0.71]
[1765152696563,16.66386281,132.04,132.0,0.71]
[1765152696863,35.59751927,132.04,132.0,0.71]
[1765152699596,3.50516415,132.01,131.96,0.71]
[1765152699744,0.71,132.0,131.96,0.71]
[1765152700949,7.57633154,131.99,131.96,0.71]
[1765152704570,8.28633154,131.99,131.96,0.71]
[1765152705161,7.57633154,131.99,131.96,0.71]
[1765152705474,8.28633154,131.99,131.96,0.71]
[1765152714360,7.57633154,131.99,131.96,0.71]
[1765152714561,8.28633154,131.99,131.96,0.71]
[1765152715259,7.57633154,131.99,131.95,7.57857118]
[1765152715563,8.28633154,131.99,131.96,0.72]
[1765152716678,2.24596246,131.97,131.92,1e-08]
[1765152716872,2.24596246,131.96,131.92,1e-08]
[1765152717092,2.24596246,131.96,131.92,0.72000001]
[1765152717272,0.71,131.95,131.92,0.72000001]
[1765152717662,2.95596246,131.95,131.92,0.72000001]
[1765152718180,0.71,131.95,131.92,0.72000001]
[1765152718588,8.28888119,131.95,131.92,0.72000001]
[1765152719600,2.24596246,131.98,131.92,8.30031844]
[1765152719894,2.95596246,132.0,131.94,2.24596246]
[1765152720098,7.57598644,132.0,131.95,2.24596246]
[1765152720470,8.28598644,132.0,131.96,0.72]
[1765152720663,8.28598644,132.0,131.96,8.2979744]
[1765152720966,7.57598644,132.0,131.96,8.2979744]
[1765152721167,8.28598644,132.0,131.97,0.72]
[1765152721787,7.57598644,132.0,131.97,0.72]
[1765152722091,2.24596246,132.02,131.97,8.29738413]
[1765152722263,7.57476074,132.02,131.98,0.72]
[1765152722464,8.80994492,131.98,131.92,1e-08]
[1765152722683,16.308864,132.0,131.92,1e-08]
[1765152722684,2.24596246,131.95,131.92,1e-08]
[1765152723100,11.28596246,131.97,131.92,8.25034741]
[1765152723390,10.62596246,131.97,131.92,8.25034741]
[1765152723593,11.28596246,131.97,131.93,0.67]
[1765152723901,2.90596246,131.96,131.92,1e-08]
[1765152724192,2.24596246,131.93,131.92,1e-08]
[1765152724420,10.62596246,131.94,131.92,1e-08]
[1765152724588,8.38,131.94,131.92,0.67000001]
[1765152725092,9.04,131.94,131.92,1e-08]
[1765152725273,2.90596246,131.93,131.92,1e-08]
[1765152725681,2.24596246,131.93,131.92,1e-08]
[1765152725903,2.90596246,131.93,131.92,1e-08]
[1765152726388,10.48573961,131.93,131.92,1e-08]
[1765152727098,7.57977715,131.93,131.92,0.67000001]
[1765152727276,7.57930213,131.94,131.92,0.67000001]
[1765152727676,9.82526459,131.94,131.92,0.67000001]
[1765152728086,7.57930213,131.94,131.92,0.67000001]
[1765152728882,7.57930213,131.94,131.92,1e-08]
[1765152729210,7.57930213,131.94,131.92,0.67000001]
[1765152729596,7.57930213,131.94,131.92,1e-08]
[1765152730112,7.57930213,131.94,131.92,0.67000001]
[1765152731105,15.08066038,131.98,131.92,6.69066039]
[1765152731322,6.68066038,131.97,131.93,0.67]
[1765152731612,15.97690559,131.98,131.93,6.69066038]
[1765152731808,16.63690559,131.98,131.93,6.69066038]
[1765152732009,16.63690559,131.98,131.94,0.67]
[1765152732312,7.57690559,131.98,131.94,0.67]
[1765152732515,6.02066038,132.01,131.95,6.02066038]
[1765152732808,8.4,132.0,131.95,6.02066038]
[1765152733020,15.97584693,132.0,131.96,8.24805395]
[1765152733495,15.97584693,132.0,131.97,0.67]
[1765152734288,7.57533715,132.01,131.97,0.67]
[1765152734907,16.61469034,132.02,131.97,8.24708174]
[1765152735227,6.68066038,132.0,131.96,0.67]
[1765152735712,0.66,131.99,131.96,0.67]
[1765152737016,8.23627736,132.0,131.96,0.67]
[1765152737705,0.66,131.99,131.96,0.67]
[1765152738010,8.23627736,132.0,131.96,0.67]
[1765152739511,16.61530318,132.01,131.96,14.26832043]
[1765152739713,7.57478371,132.02,131.97,6.02066038]
[1765152740012,7.57478371,132.02,131.98,6.02066038]
[1765152740210,0.66,132.01,131.97,0.67]
[1765152741009,7.57575757,132.0,131.97,0.67]
[1765152744905,8.29575757,132.0,131.97,0.67]
[1765152746208,8.29575757,132.0,131.95,75.79904931]
[1765152746521,0.72,131.99,131.96,0.72]
[1765152746816,7.57575757,132.0,131.96,0.72]
[1765152747119,8.29575757,132.0,131.96,0.72]
[1765152747296,0.72,131.99,131.96,0.72]
[1765152748098,8.29635412,131.99,131.96,0.72]
[1765152750821,7.57635412,131.99,131.96,8.29794756]
[1765152751729,8.29635412,131.99,131.96,8.29794756]
[1765152752031,8.29635412,131.99,131.96,0.72]
[1765152756534,8.29635412,131.99,131.96,8.2980513]
[1765152756535,0.72,131.99,131.96,8.2980513]
[1765152756832,8.29635438,131.99,131.96,8.2980513]
[1765152758747,8.29597151,132.0,131.96,10.5438294]
[1765152759319,8.29597151,132.0,131.96,8.2980513]
[1765152759525,0.72,131.99,131.96,8.2980513]
[1765152760453,0.72,131.99,131.96,7.5780513]
[1765152760631,0.72,132.0,131.97,0.72]
[1765152761243,7.57423014,132.03,131.97,9.1]
[1765152761419,0.72,132.07,132.02,2.2457781]
[1765152761827,0.72,132.07,132.03,0.72]
[1765152762327,0.72,132.07,132.03,2.9657781]
[1765152762526,2.2457781,132.1,132.03,10.53937121]
[1765152762732,0.72,132.09,132.04,4.22428029]
[1765152763241,0.72,132.09,132.05,0.72]
[1765152763746,8.2906347,132.09,132.05,0.72]
[1765152764329,8.2906347,132.09,132.05,8.29286379]
[1765152764533,0.72,132.08,132.05,8.29286379]
[1765152766048,8.29127028,132.08,132.04,11.07753611]
[1765152766249,8.29127028,132.08,132.04,11.79753611]
[1765152767196,0.72,132.07,132.04,11.79753611]
[1765152767325,0.72,132.08,132.05,0.72]
[1765152768041,0.72,132.08,132.04,11.79753611]
[1765152768427,0.72,132.08,132.04,11.07753611]
[1765152768627,8.29136783,132.08,132.05,0.71]
[1765152768848,8.29136783,132.08,132.01,11.78896345]
[1765152768849,30.72357059,132.08,132.01,11.78896345]
[1765152769050,0.67,132.07,132.01,20.16896345]
[1765152769229,0.67,132.07,132.02,0.71]
[1765152770054,0.67,132.07,132.02,11.7886555]
[1765152770224,7.57136783,132.08,132.04,3.50428029]
[1765152770425,8.24136783,132.08,132.04,3.50428029]
[1765152770649,8.24136783,132.08,132.04,4.21428029]
[1765152770830,8.24136783,132.08,132.05,0.71]
[1765152773454,0.72,132.07,132.04,11.78760705]
[1765152774153,8.29136783,132.08,132.04,11.07760705]
[1765152774342,8.29136783,132.08,132.05,0.71]
[1765152776545,0.72,132.08,132.05,8.28266755]
[1765152776860,0.72,132.07,132.03,4.21428029]
[1765152777353,0.72,132.07,132.04,0.71]
[1765152778959,8.29189983,132.07,132.03,7.57360536]
[1765152779160,8.29189983,132.07,132.02,109.32901564]
[1765152779161,11.79618012,132.07,132.02,7.57438968]
[1765152779366,12.60428029,132.06,132.0,16.66536126]
[1765152779667,3.50428029,132.05,132.0,8.28536126]
[1765152779957,7.5740362,132.03,131.99,8.38]
[1765152780142,7.5740362,132.03,131.99,0.71]
[1765152780345,8.2940362,132.03,132.0,0.71]
[1765152780554,3.50428029,132.07,132.0,4.21428029]
[1765152780737,9.1,132.06,132.01,3.50428029]
[1765152780930,8.38,132.06,132.02,0.71]
[1765152781134,0.72,132.05,132.02,0.71]
[1765152781669,0.72,132.05,132.01,7.5750813]
[1765152781841,8.29312143,132.05,132.0,28.09867752]
[1765152782038,11.79740172,132.05,132.0,23.88439723]
[1765152782360,0.72,132.04,132.0,24.59439723]
[1765152782654,0.72,132.04,132.01,0.71]
[1765152783650,0.72,132.04,132.0,23.88439723]
[1765152783855,11.79813948,132.04,131.99,7.57626935]
[1765152784061,11.79813948,132.04,131.99,8.27626935]
[1765152784361,0.7,132.03,132.0,0.7]
[1765152784560,3.50428029,132.01,131.96,0.7]
[1765152785060,0.7,132.0,131.96,0.7]
[1765152785360,0.7,132.01,131.97,7.57711262]
[1765152785868,0.7,132.01,131.98,0.7]
[1765152787185,8.27528109,132.01,131.98,0.7]
[1765152787957,0.7,132.04,131.99,3.50428029]
[1765152788382,0.7,132.04,132.0,0.7]
[1765152789192,8.27367749,132.04,132.0,8.27568392]
[1765152789786,8.27367749,132.04,132.01,0.7]
[1765152790480,0.7,132.03,132.0,7.57568392]
[1765152790668,0.7,132.03,132.0,8.27568392]
[1765152791165,7.57367749,132.04,132.01,0.7]
[1765152791370,8.27367749,132.04,132.01,0.7]
[1765152792156,8.27367749,132.04,132.0,11.07996421]
[1765152792157,0.7,132.03,131.99,11.78039878]
[1765152792360,0.7,132.03,131.99,11.08039878]
[1765152792591,0.7,132.03,131.99,11.78039878]
[1765152792766,0.7,132.03,131.99,11.08039878]
[1765152793093,0.7,132.03,132.0,8.27574101]
[1765152793269,0.7,132.03,131.99,11.78042098]
[1765152793469,0.7,132.03,131.99,70.47614069]
[1765152793668,0.7,132.03,131.99,62.2]
[1765152794180,7.5746099,132.02,131.99,62.2]
[1765152794391,7.5746099,132.02,131.99,62.9]
[1765152794575,8.2746099,132.02,131.99,62.9]
[1765152795786,8.2746099,132.02,131.99,62.2]
[1765152795966,0.7,132.01,131.99,62.2]
[1765152796165,0.7,132.01,131.97,62.9]
[1765152796384,0.7,132.01,131.96,7.57802253]
[1765152796591,3.50428029,132.0,131.95,8.27824253]
[1765152796766,4.20428029,132.01,131.95,11.78252282]
[1765152797085,0.7,132.0,131.96,7.57796243]
[1765152797264,54.70227099,132.03,131.97,11.08137586]
[1765152797467,0.7,132.01,131.97,8.27709557]
[1765152797995,8.27546247,132.01,131.97,8.27709557]
[1765152798999,7.57546247,132.01,131.97,8.27709557]
[1765152799290,8.27546247,132.01,131.97,8.27709557]
[1765152801697,43.6239545,132.03,131.97,8.27709557]
[1765152801698,16.988864,132.03,131.99,3.50428029]
[1765152801895,0.68,132.03,131.99,3.50428029]
[1765152802073,0.68,132.03,131.99,4.20428029]
[1765152802389,0.68,132.03,131.99,0.7]
[1765152802697,8.25424507,132.03,131.99,0.7]
[1765152803197,8.25424507,132.03,131.99,8.27626968]
[1765152803794,7.57424507,132.03,132.0,0.7]
[1765152804000,16.63368783,132.04,132.0,0.7]
[1765152805978,4.18428029,132.03,131.99,62.2]
[1765152806171,0.68,132.02,131.99,62.2]
[1765152806504,34.88734429,132.04,131.99,62.2]
[1765152806708,0.68,132.03,132.0,0.7]
[1765152807223,8.25411619,132.03,132.0,0.7]
[1765152808001,8.25411619,132.03,131.99,73.28021828]
[1765152808002,7.57411619,132.03,131.99,62.9]
[1765152808195,0.68,132.02,131.99,62.9]
[1765152809614,8.25465984,132.02,131.99,62.9]
[1765152810311,8.25465984,132.02,131.99,62.2]
[1765152810507,0.68,132.01,131.99,62.2]
[1765152811321,0.68,132.01,131.97,9.08]
[1765152811517,0.68,132.01,131.98,0.7]
[1765152812313,7.57575757,132.0,131.98,0.7]
[1765152812519,7.57575757,132.0,131.96,62.9]
[1765152812691,8.25575757,132.0,131.97,0.7]
[1765152813910,7.57531211,132.01,131.97,8.277298]
[1765152814220,8.25531211,132.01,131.97,8.277298]
[1765152814409,8.25531211,132.01,131.98,0.7]
[1765152816417,7.57531211,132.01,131.98,8.27689099]
[1765152816621,7.57483388,132.02,131.98,8.27689099]
[1765152816917,7.57483388,132.02,131.99,0.7]
[1765152817230,8.25483388,132.02,131.98,0.7]
[1765152819219,8.25527903,132.01,131.98,0.7]
[1765152820126,0.68,132.0,131.95,0.7]
[1765152820326,4.18428029,132.0,131.93,105.83781954]
[1765152820627,4.18428029,132.0,131.95,0.7]
[1765152820914,0.68,131.99,131.95,0.7]
[1765152821120,0.68,131.99,131.95,8.27827504]
[1765152821294,8.25637865,131.99,131.96,0.7]
[1765152822210,0.68,131.99,131.96,0.7]
[1765152822411,7.57593201,132.0,131.96,0.7]
[1765152822613,8.25593201,132.0,131.96,0.7]
[1765152823019,0.68,131.99,131.96,0.7]
[1765152823924,8.25593201,132.0,131.96,8.27804044]
[1765152824107,0.68,131.99,131.96,8.27804044]
[1765152825731,8.25634205,131.99,131.96,8.27804044]
[1765152825922,8.25634205,131.99,131.96,0.7]
[1765152826900,0.68,131.98,131.96,0.7]
[1765152827629,0.68,131.98,131.92,8.28017188]
[1765152827630,10.502848,131.98,131.92,8.28017188]
[1765152827803,37.82511197,131.98,131.93,7.57959206]
[1765152828005,0.68,131.97,131.93,8.27959206]
[1765152828226,2.92583778,131.97,131.93,8.27959206]
[1765152828412,0.68,131.97,131.93,7.57959206]
[1765152828612,15.95701022,131.98,131.94,8.27913615]
[1765152828931,8.38,131.98,131.94,2.94583778]
[1765152829227,8.25653204,131.99,131.94,15.95897235]
[1765152829228,9.82236982,131.99,131.94,15.95897235]
[1765152829405,0.68,131.97,131.94,16.65897235]
[1765152829732,2.92583778,131.97,131.92,1e-08]
[1765152829914,2.92583778,131.97,131.92,0.70000001]
[1765152830119,0.68,131.96,131.92,0.70000001]
[1765152830711,0.68,131.96,131.92,8.28018785]
[1765152831027,7.57783971,131.97,131.92,8.28018785]
[1765152831229,0.7,131.96,131.93,0.69]
[1765152834829,8.27783971,131.97,131.93,8.26977425]
[1765152835028,0.7,131.99,131.94,10.62583778]
[1765152835234,0.7,131.99,131.94,73.51583778]
[1765152835428,0.7,131.99,131.95,0.69]
[1765152835737,0.7,131.99,131.95,62.89]
[1765152836114,8.27652744,131.99,131.96,0.69]
[1765152837535,45.87319704,132.01,131.96,10.51365611]
[1765152837536,0.7,132.01,131.96,10.51365611]
[1765152837711,0.7,132.01,131.96,8.26781833]
[1765152837712,2.94583778,132.01,131.96,8.26781833]
[1765152837916,2.94583778,132.01,131.97,0.69]
[1765152838110,0.7,132.01,131.97,0.69]
[1765152838331,0.7,132.0,131.97,0.69]
[1765152838635,8.27581549,132.0,131.97,0.69]
[1765152839424,0.7,132.0,131.97,8.26739079]
[1765152839625,7.57540277,132.01,131.97,8.26739079]
[1765152839830,8.27540277,132.01,131.98,0.69]
[1765152841637,28.75697244,132.02,131.98,0.69]
[1765152841841,0.7,132.01,131.98,0.69]
[1765152842722,0.7,132.01,131.97,8.26738568]
[1765152842922,8.27571901,132.01,131.98,0.69]
[1765152845425,7.57571901,132.01,131.98,0.69]
[1765152845631,8.28571901,132.01,131.98,0.69]
[1765152850150,26.51113466,132.02,131.98,0.69]
[1765152850351,0.71,132.0,131.98,0.69]
[1765152850738,0.71,132.0,131.97,8.26747396]
[1765152851567,7.57560281,132.01,131.98,0.69]
[1765152851744,0.71,132.0,131.98,0.69]
[1765152851934,0.71,132.0,131.97,8.26747396]
[1765152854457,8.28560281,132.01,131.98,0.69]
[1765152855863,8.28520226,132.01,131.98,8.26677646]
[1765152856567,8.28520226,132.01,131.98,0.69]
[1765152858266,0.71,132.0,131.97,62.89]
[1765152858438,18.55470178,131.98,131.92,0.69000001]
[1765152858633,18.55470178,131.98,131.93,0.69]
[1765152858947,0.71,131.97,131.93,2.93583778]
[1765152859332,10.62583778,131.99,131.94,0.69]
[1765152859536,0.71,131.98,131.94,0.69]
[1765152860763,8.28741278,131.98,131.94,0.69]
[1765152862565,8.28741278,131.98,131.94,8.26913705]
[1765152862744,7.57741278,131.98,131.94,10.51497483]
[1765152862945,7.57741278,131.98,131.95,0.7]
[1765152863444,8.29741278,131.98,131.95,0.7]
[1765152863943,8.29633154,131.99,131.95,72.72425466]
[1765152864144,8.29633154,131.99,131.95,70.47841688]
[1765152864353,8.29633154,131.99,131.96,0.7]
[1765152864946,7.57598214,132.0,131.96,8.27800813]
[1765152865145,7.57598214,132.0,131.96,78.85800813]
[1765152865146,8.29598214,132.0,131.96,78.85800813]
[1765152865459,8.29598214,132.0,131.97,0.7]
[1765152865662,2.96583778,131.99,131.94,8.2790521]
[1765152865858,0.72,131.98,131.94,7.5790521]
[1765152866163,0.72,131.98,131.95,0.7]
[1765152866954,7.57670413,131.99,131.95,8.27855086]
[1765152867158,18.20180992,132.0,131.95,8.27855086]
[1765152867360,0.72,131.99,131.96,0.7]
[1765152867859,7.57597214,132.0,131.96,0.7]
[1765152868056,8.29597214,132.0,131.96,0.7]
[1765152868473,8.29597214,132.0,131.96,8.27802049]
[1765152868673,8.29597214,132.0,131.97,0.7]
[1765152868968,7.5757699,132.0,131.97,0.7]
[1765152869157,8.2957699,132.0,131.97,0.7]
[1765152869353,10.54160768,132.0,131.97,0.7]
[1765152869555,27.23516383,132.0,131.97,0.7]
[1765152869765,8.2957699,132.0,131.97,0.7]
[1765152870272,0.72,131.99,131.95,16.65843492]
[1765152870450,8.2968273,131.99,131.96,0.7]
[1765152872310,7.5768273,131.99,131.95,69.77843492]
[1765152872461,0.72,131.98,131.95,62.2]
[1765152873370,0.72,131.98,131.95,62.9]
[1765152873879,7.57747973,131.97,131.95,62.2]
[1765152874254,8.29747973,131.97,131.95,62.2]
[1765152874656,7.57747973,131.97,131.95,62.9]
[1765152875777,8.29747973,131.97,131.95,62.9]
[1765152876680,8.29747973,131.97,131.95,0.7]
[1765152876880,8.29747973,131.97,131.93,80.40550824]
[1765152877092,0.72,131.96,131.93,71.28]
[1765152877383,0.72,131.96,131.93,9.08]
[1765152877958,2.24583778,131.95,131.92,1e-08]
[1765152878159,2.24583778,131.93,131.92,1e-08]
[1765152878588,2.96583778,131.93,131.92,1e-08]
[1765152879461,10.54561493,131.93,131.92,1e-08]
[1765152880255,7.57977715,131.93,131.92,1e-08]
[1765152880970,16.67944005,131.94,131.92,1e-08]
[1765152881171,7.57944005,131.94,131.92,0.70000001]
[1765152882981,0.72,131.95,131.92,0.70000001]
[1765152883280,4.23188783,131.95,131.92,0.70000001]
[1765152883674,7.5788999,131.95,131.92,0.70000001]
[1765152883876,7.57786646,131.97,131.92,20.17221829]
[1765152884083,7.57786646,131.97,131.93,3.51188783]
[1765152884282,7.57786646,131.97,131.93,4.21188783]
[1765152884474,7.57786646,131.97,131.94,0.7]
[1765152884984,9.1,131.98,131.94,0.7]
[1765152885161,7.57711245,131.98,131.94,11.79099911]
[1765152885558,7.57711245,131.98,131.95,0.7]
[1765152885786,4.23188783,132.0,131.95,0.7]
[1765152885787,0.72,132.0,131.95,4.21188783]
[1765152885974,27.31854414,132.01,131.96,3.51188783]
[1765152886178,28.03854414,132.01,131.96,4.21188783]
[1765152886468,28.03854414,132.01,131.97,0.7]
[1765152886676,7.57587036,132.0,131.97,0.7]
[1765152887179,8.29587036,132.0,131.97,0.7]
[1765152888387,15.95531682,132.01,131.97,8.27736132]
[1765152888587,8.29531682,132.01,131.97,11.78924915]
[1765152888775,8.29531682,132.01,131.98,0.7]
[1765152889491,0.72,132.01,131.97,8.27736132]
[1765152889989,0.72,132.01,131.98,0.7]
[1765152890997,8.29519492,132.01,131.98,0.7]
[1765152894094,3.51188783,132.04,131.98,11.78874956]
[1765152894297,19.63294516,132.05,132.0,3.51188783]
[1765152894819,0.7,132.04,132.01,0.68]
[1765152895410,8.27360187,132.04,132.01,4.19188783]
[1765152895608,7.57360187,132.04,132.01,4.19188783]
[1765152895798,8.27360187,132.04,132.01,4.19188783]
[1765152896609,0.7,132.03,132.0,11.76743803]
[1765152896977,7.57349542,132.04,132.01,0.68]
[1765152897292,8.27349542,132.04,132.01,0.68]
[1765152898617,7.57349542,132.04,132.0,7.5755502]
[1765152898776,0.7,132.03,131.99,3.51188783]
[1765152899100,0.7,132.03,131.97,74.77188783]
[1765152899101,4.21188783,132.03,131.97,74.77188783]
[1765152899300,4.21188783,132.03,131.97,12.57188783]
[1765152899497,0.7,132.02,131.97,12.57188783]
[1765152899691,7.57518369,132.01,131.97,16.63724049]
[1765152899875,7.57518369,132.01,131.97,11.76912832]
[1765152900081,0.7,132.0,131.97,11.76912832]
[1765152900279,0.7,132.0,131.97,11.08912832]
[1765152900708,0.7,132.0,131.96,28.07871764]
[1765152901008,3.51188783,131.97,131.92,1e-08]
[1765152901189,3.51188783,131.95,131.92,1e-08]
[1765152901382,3.51188783,131.94,131.92,1e-08]
[1765152901905,0.72,131.97,131.93,0.66]
[1765152902080,16.67633154,131.99,131.94,3.51188783]
[1765152902587,0.72,131.98,131.95,0.66]
[1765152902790,8.29633154,131.99,131.95,4.17188783]
[1765152903192,8.29633154,131.99,131.96,4.17188783]
[1765152903391,8.29633154,131.99,131.96,0.66]
[1765152904405,8.29633154,131.99,131.95,7.57842329]
[1765152904595,8.29633154,131.99,131.95,0.66]
[1765152904911,8.29633154,131.99,131.96,0.66]
[1765152906501,7.57633154,131.99,131.96,0.66]
[1765152907286,8.29633154,131.99,131.96,0.66]
[1765152907511,11.80821937,131.99,131.95,0.66]
[1765152907809,8.29633154,131.99,131.96,0.66]
[1765152908816,15.95593216,132.0,131.96,8.23795293]
[1765152909011,16.67593216,132.0,131.97,0.66]
[1765152909514,16.67593216,132.0,131.96,8.23795293]
[1765152910318,4.23188783,131.99,131.94,62.2]
[1765152910489,11.89188783,131.98,131.94,62.2]
[1765152910684,12.61188783,131.98,131.94,62.2]
[1765152911016,0.72,131.97,131.94,62.2]
[1765152911513,8.29782647,131.97,131.94,62.2]
[1765152911707,8.29782647,131.97,131.94,62.86]
[1765152912016,4.23188783,132.0,131.95,0.16]
[1765152912325,0.72,132.0,131.95,62.36]
[1765152912543,7.57596374,132.0,131.95,65.87188783]
[1765152912681,8.29596374,132.0,131.95,65.71188783]
[1765152913701,0.72,132.05,131.99,3.51188783]
[1765152913926,9.1,132.05,131.99,3.51188783]
[1765152914136,9.1,132.05,132.0,0.66]
[1765152914520,16.67307265,132.05,132.0,4.17188783]
[1765152914929,0.72,132.04,132.0,4.17188783]
[1765152915142,8.38,132.05,132.01,4.17188783]
[1765152915625,9.1,132.05,132.01,11.74653605]
[1765152915828,9.1,132.05,132.02,0.66]
[1765152916034,8.38,132.05,132.02,0.66]
[1765152917063,0.72,132.08,132.04,3.51188783]
[1765152917376,0.72,132.09,132.05,3.51188783]
[1765152917508,0.72,132.09,132.06,3.51188783]
[1765152917710,0.72,132.09,132.05,4.17188783]
[1765152918627,0.72,132.09,132.06,7.57231561]
[1765152919531,7.57021058,132.1,132.06,7.57231561]
[1765152919728,8.29021058,132.1,132.06,9.95460746]
[1765152920626,8.29021058,132.1,132.06,17.52671326]
[1765152921223,0.72,132.1,132.06,17.52671326]
[1765152921534,0.72,132.1,132.04,27.31355834]
[1765152921535,0.72,132.09,132.05,9.98460746]
[1765152921836,0.72,132.09,132.05,17.55712613]
[1765152922138,0.72,132.1,132.06,0.69]
[1765152922314,0.72,132.1,132.07,9.29460746]
[1765152922918,8.29005653,132.1,132.07,9.29460746]
[1765152924037,8.29005653,132.1,132.06,8.26222274]
[1765152924238,0.72,132.09,132.06,9.29460746]
[1765152924734,8.48963964,132.11,132.07,9.29460746]
[1765152925038,0.2,132.11,132.09,9.29460746]
[1765152925238,0.2,132.11,132.1,9.29460746]
[1765152926621,0.2,132.11,132.1,9.98460746]
[1765152926940,0.2,132.11,132.1,17.55463017]
[1765152927134,0.2,132.11,132.1,34.74457509]
[1765152927333,0.2,132.12,132.11,34.41341638]
[1765152927638,0.2,132.14,132.13,25.11880892]
[1765152927840,0.2,132.14,132.13,104.99341638]
[1765152928020,0.2,132.14,132.13,105.60341638]
[1765152928747,0.2,132.14,132.13,113.17172032]
[1765152929850,0.2,132.18,132.17,25.11880892]
[1765152930022,0.2,132.22,132.21,9.29460746]
[1765152930537,0.2,132.22,132.21,9.70460746]
[1765152930842,0.2,132.22,132.21,16.85833183]
[1765152931417,0.92,132.22,132.21,9.29460746]
[1765152931611,0.92,132.22,132.19,9.29460746]
[1765152931834,0.72,132.21,132.18,17.65460746]
[1765152932139,0.72,132.21,132.17,9.29460746]
[1765152932528,0.72,132.21,132.17,16.86053037]
[1765152932928,8.28408217,132.21,132.17,16.86053037]
[1765152933437,0.72,132.2,132.16,15.92638927]
[1765152933639,0.72,132.2,132.1,9.29460746]
[1765152933640,9.29460746,132.18,132.12,7.56874225]
[1765152933937,9.29460746,132.17,132.11,16.86397633]
[1765152934126,9.29460746,132.17,132.12,9.29460746]
[1765152934329,0.72,132.16,132.12,9.29460746]
[1765152934642,0.72,132.16,132.11,16.86397633]
[1765152934822,8.28688765,132.16,132.11,16.86397633]